Department Family,Entity,Date,Expenses Type,Expense Area,Supplier,Transaction Number, Total ,
Department of Health,The Christie NHS Foundation Trust,17/01/2019,Drugs,Drugs,ALCURA UK LIMITED,0000604263,"68,644.47",
Department of Health,The Christie NHS Foundation Trust,10/01/2019,Adhoc Charges Nov 18,Christie Medical Physics,ALLIANCE MEDICAL LTD,0000602601,"133,494.00",
Department of Health,The Christie NHS Foundation Trust,31/01/2019,PET Scans- Dec 18,Christie Medical Physics,ALLIANCE MEDICAL LTD,0000604186,"182,466.00",
Department of Health,The Christie NHS Foundation Trust,31/01/2019,Adhoc Charges Sep 18,Christie Medical Physics,ALLIANCE MEDICAL LTD,0000596583,"115,880.00",
Department of Health,The Christie NHS Foundation Trust,31/01/2019,PET Scans- Oct 18,Christie Medical Physics,ALLIANCE MEDICAL LTD,0000598677,"222,360.00",
Department of Health,The Christie NHS Foundation Trust,31/01/2019,PET Scans - Nov 18,Christie Medical Physics,ALLIANCE MEDICAL LTD,0000601758,"196,854.00",
Department of Health,The Christie NHS Foundation Trust,31/01/2019,Adhoc Charges- Oct 18,Christie Medical Physics,ALLIANCE MEDICAL LTD,0000599975,"168,555.00",
Department of Health,The Christie NHS Foundation Trust,02/01/2019,Drugs,Drugs,BAXTER HEALTHCARE LTD,0000603218,"336,207.60",
Department of Health,The Christie NHS Foundation Trust,03/01/2019,Drugs,Drugs,BAXTER HEALTHCARE LTD,0000602001,"231,178.31",
Department of Health,The Christie NHS Foundation Trust,03/01/2019,Drugs,Drugs,BAXTER HEALTHCARE LTD,0000602007,"554,543.99",
Department of Health,The Christie NHS Foundation Trust,10/01/2019,Drugs,Drugs,BAXTER HEALTHCARE LTD,0000602580,"604,342.94",
Department of Health,The Christie NHS Foundation Trust,24/01/2019,Drugs,Drugs,BAXTER HEALTHCARE LTD,0000604001,"642,869.44",
Department of Health,The Christie NHS Foundation Trust,24/01/2019,Drugs,Drugs,BAXTER HEALTHCARE LTD,0000604004,"314,088.59",
Department of Health,The Christie NHS Foundation Trust,24/01/2019,Installation of Non Medical Equipment,Capital,DIRECT COOLING LIMITED,0000603933,"24,987.00",
Department of Health,The Christie NHS Foundation Trust,17/01/2019,Medical Equipment,Capital,DIVERSEY LTD,0000600420,"29,217.60",
Department of Health,The Christie NHS Foundation Trust,17/01/2019,Consultancy,Programme Management Office,DRDOCTOR,0000602920,"67,200.00",
Department of Health,The Christie NHS Foundation Trust,17/01/2019,Energy Contract Dec 18,Network Services,EDF ENERGY,0000603804,"33,669.34",
Department of Health,The Christie NHS Foundation Trust,17/01/2019,Energy Contract Dec 18,Network Services,EDF ENERGY,0000603806,"45,859.58",
Department of Health,The Christie NHS Foundation Trust,10/01/2019,Medical Equipment,Capital,ELEKTA  LTD,0000600423,"1,350,000.00",
Department of Health,The Christie NHS Foundation Trust,31/01/2019,Childcare Voucher- Jan 19,Human Resources,FIDELITI LIMITED,0000605607,"29,624.71",
Department of Health,The Christie NHS Foundation Trust,03/01/2019,Medical Equipment,Clinical Support & Specialist Surgery,GE MEDICAL SYSTEMS LIMITED,0000602764,"27,099.20",
Department of Health,The Christie NHS Foundation Trust,21/01/2019,Medical Equipment,Clinical Support & Specialist Surgery,GE MEDICAL SYSTEMS LIMITED,CUR0000967,"32,519.04",
Department of Health,The Christie NHS Foundation Trust,17/01/2019,Drugs,Drugs,HEALTHCARE AT HOME LTD,0000604618,"26,385.00",
Department of Health,The Christie NHS Foundation Trust,24/01/2019,Paterson Development,Capital,INTERSERVE CONSTRUCTION LTD,0000605282,"123,928.80",
Department of Health,The Christie NHS Foundation Trust,24/01/2019,Paterson Development,Capital,INTERSERVE CONSTRUCTION LTD,0000605509,"306,549.27",
Department of Health,The Christie NHS Foundation Trust,31/01/2019,Service Contract,Clinical Support & Specialist Surgery,INTUITIVE SURGICAL LTD,0000605443,"36,221.64",
Department of Health,The Christie NHS Foundation Trust,31/01/2019,IT Equipment,FInance & Business Development,LINCOR SOLUTIONS LTD,0000568512,"37,650.00",
Department of Health,The Christie NHS Foundation Trust,24/01/2019,Drugs,Drugs,LLOYDSPHARMACY CLINICAL HOMECARE,0000605341,"31,493.28",
Department of Health,The Christie NHS Foundation Trust,07/01/2019,Rates 18/19,Estates & Facilities,M/CR CITY COUNCIL (RATES) DD,0000604075,"75,318.00",
Department of Health,The Christie NHS Foundation Trust,24/01/2019,Paterson Development,Capital,MACE LTD,0000602966,"32,046.00",
Department of Health,The Christie NHS Foundation Trust,24/01/2019,Paterson Development,Capital,MACE LTD,0000602959,"117,059.28",
Department of Health,The Christie NHS Foundation Trust,24/01/2019,Paterson Development,Capital,MACE LTD,0000595693,"30,699.60",
Department of Health,The Christie NHS Foundation Trust,24/01/2019,Paterson Development,Capital,MACE LTD,0000603772,"33,810.00",
Department of Health,The Christie NHS Foundation Trust,23/01/2019,Rates 18/19,Estates & Facilities,MANCHESTER CITY COUNCIL,0000605363,"103,348.37",
Department of Health,The Christie NHS Foundation Trust,10/01/2019,PET Scans Nov 18,Christie Medical Physics,MANCHESTER UNIVERSITY NHS FT,0000602642,"105,708.00",
Department of Health,The Christie NHS Foundation Trust,17/01/2019,Radiology Tests April 17- Jan 18,Network Services,MID CHESHIRE HOSPITALS NHS FT,0000578876,"54,540.54",
Department of Health,The Christie NHS Foundation Trust,10/01/2019,Blood Products,Network Services,NHS BLOOD AND TRANSPLANT,0000602220,"43,158.37",
Department of Health,The Christie NHS Foundation Trust,15/01/2019,Blood Products,Network Services,NHS BLOOD AND TRANSPLANT,0000604912,"182,293.80",
Department of Health,The Christie NHS Foundation Trust,15/01/2019,NHS Litigation (NHSLA),FInance & Business Development,NHS LITIGATION AUTHORITY,0000604914,"93,092.10",
Department of Health,The Christie NHS Foundation Trust,03/01/2019,Stock for all Wards & Departments,All Wards and Departments,NHS SUPPLY CHAIN,0000601755,"45,563.26",
Department of Health,The Christie NHS Foundation Trust,10/01/2019,Stock for all Wards & Departments,All Wards and Departments,NHS SUPPLY CHAIN,0000603136,"59,406.97",
Department of Health,The Christie NHS Foundation Trust,10/01/2019,Stock for all Wards & Departments,All Wards and Departments,NHS SUPPLY CHAIN,0000602345,"47,373.83",
Department of Health,The Christie NHS Foundation Trust,17/01/2019,Stock for all Wards & Departments,All Wards and Departments,NHS SUPPLY CHAIN,0000603134,"58,146.19",
Department of Health,The Christie NHS Foundation Trust,24/01/2019,Stock for all Wards & Departments,All Wards and Departments,NHS SUPPLY CHAIN,0000603326,"32,528.79",
Department of Health,The Christie NHS Foundation Trust,17/01/2019,Medical Hardware,Capital,PHILIPS HEALTHCARE,0000603427,"203,482.15",
Department of Health,The Christie NHS Foundation Trust,31/01/2019,Maintenance Jan 19 to Dec 19,Network Services,PHILIPS HEALTHCARE,0000604061,"170,000.00",
Department of Health,The Christie NHS Foundation Trust,10/01/2019,Medical Equipment,Capital,PURE AUDIO VISUAL LTD,0000602806,"61,136.91",
Department of Health,The Christie NHS Foundation Trust,10/01/2019,Medical Equipment,Capital,SIEMENS HEALTHCARE LIMITED,0000603184,"48,379.88",
Department of Health,The Christie NHS Foundation Trust,15/01/2019,Design & Documentation,Capital,SIGMAPHI,0000598878,"111,800.40",
Department of Health,The Christie NHS Foundation Trust,24/01/2019,Software Licences,FInance & Business Development,SOFTCAT PLC,0000603277,"141,185.72",
Department of Health,The Christie NHS Foundation Trust,03/01/2019,Medway System Support- Oct 18,FInance & Business Development,SYSTEM C HEALTHCARE,0000598877,"24,485.11",
Department of Health,The Christie NHS Foundation Trust,03/01/2019,Medway System Support- Nov 18,FInance & Business Development,SYSTEM C HEALTHCARE,0000601713,"24,485.11",
Department of Health,The Christie NHS Foundation Trust,03/01/2019,Blood Products,Network Services,THE ANTHONY NOLAN BONE MARROW,0000600717,"36,506.02",
Department of Health,The Christie NHS Foundation Trust,10/01/2019,Christie @ Oldham - Oct 18 to Dec 18,Estates & Facilities,THE PENNINE ACUTE HOSPITAL NHS TRUST,0000603102,"38,140.50",
Department of Health,The Christie NHS Foundation Trust,24/01/2019,Research Project,Research & Development,UNIVERSITY OF MANCHESTER,0000601435,"46,066.99",
Department of Health,The Christie NHS Foundation Trust,24/01/2019,Broadband Services,FInance & Business Development,VIRGIN MEDIA BUSINESS,0000603970,"26,314.00",
Department of Health,The Christie NHS Foundation Trust,10/01/2019,Christie @ Wigan Jan 19,Network Services,WRIGHTINGTON WIGAN AND LEIGH NHS FT,0000603291,"231,448.00",
Department of Health,The Christie NHS Foundation Trust,24/01/2019,Macmillan Oct-Dec 18,Network Services,WRIGHTINGTON WIGAN AND LEIGH NHS FT,0000604531,"85,196.00",
